[Event "Polish Ekstraliga 2024"]
[Site "Walbrzych"]
[Date "2024.10.09"]
[Round "3.25"]
[White "Sowinski, Pawel"]
[Black "Volokitin, Andrei"]
[Result "0-1"]
[ECO "B90"]
[WhiteElo "2455"]
[BlackElo "2648"]
[Annotator "TA"]
[PlyCount "70"]
[EventDate "2024.10.05"]
[EventType "team-tourn"]
[EventCountry "POL"]
[SourceTitle "playchess.com"]
[Source "ChessBase"]
[SourceQuality "1"]
[WhiteTeam "Sedziszow Malopolski"]
[BlackTeam "Pegow"]
[TimeControl "40/5400+30:1800+30"]

{[%evp 19,70,-45,-31,-50,-41,-34,-51,-48,-40,-64,-91,-61,-75,-93,-92,-88,-85,-159,-142,-144,-120,-131,-123,-125,-103,-135,-130,-123,-125,-170,-181,-213,-198,-214,-214,-291,-291,-292,-297,-291,-280,-382,-384,-422,-394,-437,-420,-430,-437,-451,-441,-394,-394]} 1. e4 {[%emt 0:00:03]} c5 {[%emt 0:00:40]} 2. Nf3 {[%emt 0:00:05]} d6 {[%emt 0:00:28]} 3. d4 {[%emt 0:00:05]} cxd4 {[%emt 0:00:15]} 4. Nxd4 {[%emt 0:00:05]} Nf6 {[%emt 0:00:06]} 5. Nc3 {[%emt 0:00:07]} a6 {[%emt 0:00:06]} 6. f3 {[%emt 0:00:03]} e5 {[%emt 0:05:33]} 7. Nb3 {[%emt 0:00:43]} Be7 {[%emt 0:07:32]} 8. Be3 {[%emt 0:00:10]} O-O {[%emt 0:00:35]} 9. Qd2 {[%emt 0:00:04]} Be6 {[%emt 0:01:28]} 10. g4 {[%emt 0:00:24]} d5 {[%emt 0:01:33]} 11. exd5 {[%emt 0:18:59]} Nxd5 {[%emt 0:00:19]} 12. Nxd5 {[%emt 0:00:12]} Bh4+ {[%emt 0:11:26]} ({Much worse is} 12... Qxd5 13. Qxd5 Bxd5 14. Be2 $11) 13. Bf2 {[%emt 0:00:41] Black is slightly better.} Bxd5 {[%emt 0:00:32]} 14. Bxh4 {[%emt 0:05:33]} Qxh4+ {[%emt 0:00:05]} 15. Qf2 {[%emt 0:00:04]} Qf6 {[%emt 0:16:40] Black is more active.} 16. Bg2 {[%emt 0:00:49]} Nc6 {[%emt 0:01:45]} 17. O-O {[%emt 0:00:11]} Ne7 {[%emt 0:06:10]} 18. f4 {[%emt 0:01:06]} ({Better is} 18. Nc5) 18... exf4 {[%emt 0:07:26]} 19. Qd4 {[%emt 0:03:40]} Qxd4+ {[%emt 0:04:08]} 20. Nxd4 {[%emt 0:00:02]} Bxg2 {[%emt 0:00:15]} 21. Kxg2 {[%emt 0:00:02]} g5 {[%emt 0:00:27]} 22. Rfe1 {[%emt 0:01:27]} Rfe8 {[%emt 0:02:39]} 23. Rad1 {[%emt 0:02:43]} f6 {[%emt 0:08:16]} 24. c4 {[%emt 0:02:58]} Ng6 {[%emt 0:05:12]} 25. c5 {[%emt 0:06:25]} Rxe1 {[%emt 0:01:05]} 26. Rxe1 $19 {[%emt 0:00:01][%mdl 4096] Endgame. KRN-KRN} Rd8 {[%emt 0:00:13]} 27. Re4 {[%emt 0:00:48]} Ne5 {[%emt 0:08:18]} 28. h3 {[%emt 0:00:02]} Kf7 {[%emt 0:00:20]} 29. b4 {[%emt 0:00:09]} Kg6 {[%emt 0:01:53]} 30. a4 {[%emt 0:00:05]} h5 {[%emt 0:00:41]} 31. gxh5+ {[%emt 0:00:13]} Kxh5 {[%emt 0:00:04]} 32. b5 {[%emt 0:00:23]} axb5 {[%emt 0:00:39]} 33. axb5 {[%emt 0:00:02]} Ra8 {[%emt 0:00:55]} 34. c6 {[%emt 0:02:51]} bxc6 {[%emt 0:01:35]} 35. bxc6 {[%emt 0:00:02]} Rc8 {[%emt 0:01:07] Weighted Error Value: White=0.26 (precise) /Black=0.02 (flawless) .  Mistake:       	White=1     	---        Inaccurate:     	White=4     	---        OK:         	White=3     	Black=19     Best:        	White=2     	Black=1} 0-1

[Event "Polish Ekstraliga 2024"]
[Site "Walbrzych"]
[Date "2024.10.09"]
[Round "3.26"]
[White "Lagarde, Maxime"]
[Black "Sernecki, Franciszek"]
[Result "1-0"]
[ECO "A18"]
[WhiteElo "2595"]
[BlackElo "2335"]
[Annotator "TA"]
[PlyCount "73"]
[EventDate "2024.10.05"]
[EventType "team-tourn"]
[EventCountry "POL"]
[SourceTitle "playchess.com"]
[Source "ChessBase"]
[SourceQuality "1"]
[WhiteTeam "Pegow"]
[BlackTeam "Sedziszow Malopolski"]
[TimeControl "40/5400+30:1800+30"]

{[%evp 10,73,16,13,22,0,0,10,0,0,25,29,28,15,35,27,19,37,27,30,38,33,127,122,121,61,50,60,105,32,45,38,44,54,107,92,101,0,147,0,0,0,0,0,101,108,115,99,98,110,168,168,166,165,389,383,991,1029,1095,1039,1058,562,5712,5628,4794,2113]} 1. c4 {[%emt 0:00:03]} Nf6 {[%emt 0:00:29]} 2. Nc3 {[%emt 0:00:04]} e6 {[%emt 0:00:25]} 3. e4 {[%emt 0:00:17]} d5 {[%emt 0:01:07]} 4. cxd5 {[%emt 0:00:24]} exd5 {[%emt 0:00:08]} 5. e5 {[%emt 0:00:05]} Ne4 {[%emt 0:01:12]} 6. Nf3 {[%emt 0:00:06]} Bf5 {[%emt 0:04:42]} 7. d3 {[%emt 0:00:07]} Nxc3 {[%emt 0:00:09]} 8. bxc3 {[%emt 0:00:04]} c5 {[%emt 0:04:09] The position is equal.} 9. d4 {[%emt 0:00:03]} Nc6 {[%emt 0:02:10]} 10. Bd3 {[%emt 0:00:10]} Bxd3 {[%emt 0:04:43]} 11. Qxd3 {[%emt 0:00:06]} cxd4 {[%emt 0:00:46]} 12. Nxd4 {[%emt 0:03:04]} Nxd4 {[%emt 0:06:42]} 13. cxd4 {[%emt 0:00:07]} Bb4+ {[%emt 0:03:15]} 14. Ke2 {[%emt 0:01:24]} O-O {[%emt 0:05:47]} 15. Rb1 {[%emt 0:00:51]} Qa5 {[%emt 0:12:34]} (15... Ba5 $1 $14) 16. a3 $36 {[%emt 0:17:58][%mdl 2048] White is on the roll.} Bc3 {[%emt 0:04:49]} 17. Rb5 {[%emt 0:01:37]} (17. Be3 $16 {Threatens to win with Rb3.} Rac8 18. Rxb7) 17... Qa4 $14 {[%emt 0:02:47]} 18. Be3 {[%emt 0:02:14]} Rac8 {[%emt 0:18:39]} 19. Rc1 {[%emt 0:04:56]} (19. Rxb7 $16 {Rc1 is the strong threat.} Rc4 20. Rhb1 Qxa3 (20... Bxd4 $2 21. R7b4 $18) 21. Rb8) 19... b6 $1 {[%emt 0:01:08][%cal Of8d8]} 20. Rxd5 {[%emt 0:00:50]} (20. Rxc3 $2 {loses.} Rxc3 21. Qxc3 Qxb5+ 22. Qd3 Qa4 $19) 20... Qxa3 {[%emt 0:01:44] And now ...Qa2+ would win.} 21. Rb5 {[%emt 0:05:06] Active counter play!} Qa2+ {[%emt 0:04:07]} (21... Qa4 $1 $14) 22. Rc2 $1 $16 {[%emt 0:01:47]} Qa1 {[%emt 0:00:31]} 23. f4 {[%emt 0:06:53]} ({White should try} 23. h3 $16) 23... Qe1+ $11 {[%emt 0:06:37]} 24. Kf3 {[%emt 0:00:04] Rc1 would now be deadly.} Bb4 {[%emt 0:01:32]} 25. Rc4 {[%emt 0:29:48]} Rxc4 {[%emt 0:03:16]} 26. Qxc4 {[%emt 0:01:29]} Bd2 {[%emt 0:01:03]} (26... Qd1+ $11 27. Qe2 Qb3) 27. Qe2 $16 {[%emt 0:07:52]} Qxe2+ {[%emt 0:01:16]} 28. Kxe2 {[%emt 0:00:02]} Bxe3 {[%emt 0:00:36]} 29. Kxe3 {[%emt 0:00:07][%mdl 4096] Endgame. KR-KR} Rd8 {[%emt 0:03:47]} (29... Rb8 $16 30. d5 Kf8) 30. d5 $18 {[%emt 0:09:38][%cal Bd4d5,Bd5d6][%mdl 32]} Kf8 {[%emt 0:00:24]} 31. Kd4 {[%emt 0:00:03]} Ke7 $2 {[%emt 0:02:20] [#]} (31... Ke8 {is a better defense.} 32. Rb3 a5 33. Rxb6 Ra8) 32. d6+ $1 {[%emt 0:04:51]} Ke6 $2 {[%emt 0:00:45] [#]} (32... Ke8 33. f5 h5) 33. f5+ $1 {[%emt 0:00:13][%mdl 512] White is clearly winning.} Kxf5 {[%emt 0:01:25]} 34. Kd5 {[%emt 0:00:03]} h5 {[%emt 0:01:49]} 35. Rb2 {[%emt 0:00:56]} g5 {[%emt 0:00:28]} 36. Rf2+ {[%emt 0:00:20]} Kg6 {[%emt 0:00:04]} 37. Kc6 {[%emt 0:01:12] Weighted Error Value: White=0.37/Black=0.29 (precise) .  Mistake:       	White=3     	Black=6      Inaccurate:     	White=1     	Black=1      OK:         	White=10    	Black=14     Best:        	White=1     	Black=2      Strong:       	White=2     	Black=1      Brilliant:      	White=1     	---} (37. Rf6+ $142 Kg7 38. Kc6) 1-0

[Event "Polish Ekstraliga 2024"]
[Site "Walbrzych"]
[Date "2024.10.09"]
[Round "3.27"]
[White "Toczek, Grzegorz"]
[Black "Zilka, Stepan"]
[Result "0-1"]
[ECO "A46"]
[WhiteElo "2267"]
[BlackElo "2552"]
[Annotator "TA"]
[PlyCount "83"]
[EventDate "2024.10.05"]
[EventType "team-tourn"]
[EventCountry "POL"]
[SourceTitle "playchess.com"]
[Source "ChessBase"]
[SourceQuality "1"]
[WhiteTeam "Sedziszow Malopolski"]
[BlackTeam "Pegow"]
[TimeControl "40/5400+30:1800+30"]

{[%evp 11,83,0,10,-4,-6,-18,-5,-15,-12,-14,-25,0,-5,-27,-23,-24,-9,-10,-8,-22,-10,-96,-80,-91,-87,-70,-33,-62,-6,-70,-46,-89,-76,-79,-66,-83,-81,-111,-107,-122,-121,-114,-110,-233,-233,-229,-226,-222,0,0,0,-308,-311,-311,-296,-308,-308,-302,-281,-493,-493,-647,-604,-690,-690,-680,-680,-665,-665,-639,-614,-591,-549,-407]} 1. d4 {[%emt 0:00:08]} Nf6 {[%emt 0:00:08]} 2. Nf3 {[%emt 0:00:10]} e6 {[%emt 0:00:24]} 3. c3 {[%emt 0:00:41]} d5 {[%emt 0:00:21]} 4. Bf4 {[%emt 0:00:09]} c5 {[%emt 0:00:17]} 5. e3 {[%emt 0:00:04]} Nc6 {[%emt 0:01:16]} 6. Nbd2 {[%emt 0:00:29]} Nh5 {[%emt 0:01:12]} 7. Be5 {[%emt 0:01:51]} f6 {[%emt 0:00:20]} 8. Bg3 {[%emt 0:00:03]} g6 {[%emt 0:00:43]} 9. Bd3 {[%emt 0:09:21] The position is equal.} Be7 {[%emt 0:00:40]} 10. a3 {[%emt 0:07:33]} O-O {[%emt 0:10:24]} 11. dxc5 {[%emt 0:08:24]} Bxc5 {[%emt 0:00:55]} 12. b4 {[%emt 0:00:47]} Be7 {[%emt 0:00:31]} 13. c4 {[%emt 0:00:10]} d4 {[%emt 0:04:30]} 14. exd4 {[%emt 0:08:50][%cal Od4d5]} Nxd4 {[%emt 0:00:40] Black wants to play ...f5.} 15. O-O {[%emt 0:00:29]} a5 {[%emt 0:06:08]} 16. b5 {[%emt 0:22:44] [#]} (16. Nxd4 $11 {keeps the balance.} Nxg3 17. hxg3 Qxd4 18. Nb3) 16... Nxb5 $1 {[%emt 0:06:26]} 17. Bxg6 {[%emt 0:00:45]} hxg6 {[%emt 0:04:10][%cal Bh7g6,Bg6g5][%mdl 32]} (17... Nc3 18. Bxh7+ Kg7 (18... Kxh7 19. Qc2+ f5 20. Qxc3 $11) 19. Qc2 Ne2+ 20. Kh1 Nexg3+ (20... f5 21. Be5+ Kxh7 22. Rad1 $15) 21. fxg3) 18. cxb5 {[%emt 0:00:04]} Nxg3 {[%emt 0:00:34]} 19. hxg3 {[%emt 0:00:04]} Qd3 {[%emt 0:01:59] Wards off Qc2} (19... e5 $15) 20. Re1 {[%emt 0:01:25]} (20. Qa4 $11) 20... e5 $15 {[%emt 0:02:56][%cal Oc8e6]} 21. Qa4 {[%emt 0:08:29]} Be6 {[%emt 0:03:43]} 22. g4 {[%emt 0:03:14][%cal Og4g5] [#]} g5 $1 {[%emt 0:04:36] Black has more active pieces.} 23. Re3 $1 {[%emt 0:02:12]} Qd5 {[%emt 0:02:04]} 24. Rae1 {[%emt 0:00:10] [#]} Rac8 {[%emt 0:02:41] Prevents Qc2} 25. Ne4 {[%emt 0:02:07][%cal Oe4g5]} Rc4 {[%emt 0:05:57]} (25... Bxg4 $2 26. Nxf6+ (26. Qxa5 Bf5 $17) 26... Bxf6 27. Qxg4 $18) 26. Qxa5 {[%emt 0:00:11]} Bxg4 {[%emt 0:02:35]} 27. Nexg5 {[%emt 0:00:39]} Bc5 $19 {[%emt 0:16:28]} 28. Re4 {[%emt 0:03:36]} fxg5 {[%emt 0:02:15]} 29. Rxc4 {[%emt 0:09:16]} Bxf2+ $2 {[%emt 0:06:30]} ({Inferior is} 29... Bxf3 30. Rxc5 Qxc5 31. Qd2 (31. gxf3 Rxf3 32. Qd2 Kf7 $11) 31... Bxg2 32. Qxg5+ (32. Kxg2 Rf4 $11) 32... Kh7 33. Qh4+ (33. Qxg2 $2 Rg8 $19) 33... Kg6 34. Qg3+ (34. Kxg2 Rf4 $11) 34... Kf6 35. Qxg2 $11 (35. Kxg2 Qxb5 36. Qf3+ Ke7 $11)) ({Black should try} 29... Qxc4 $19 30. Qd2 Bxf3 (30... Qxb5 $2 31. Qxg5+ Kh8 32. Qh4+ $18) 31. Rxe5 Kh8 32. Qxg5 Bxf2+ (32... Bxa3 $2 33. Qh6+ Kg8 34. Qg6+ Kh8 35. gxf3 $18) 33. Kh2 Qf4+ 34. Qxf4 Rxf4 35. gxf3 Rxf3 36. Re8+ Kg7) 30. Kxf2 $11 {[%emt 0:01:54]} Bxf3 {[%emt 0:00:06]} 31. Qc3 $2 {[%emt 0:01:18][%mdl 8192] [#]} (31. Qb4 $1 $11 {and White has nothing to worry.} Qxc4 32. gxf3 Qxb4 33. axb4) 31... Qxc4 $3 $19 {[%emt 0:01:27][%mdl 512]} 32. Qxc4+ {[%emt 0:05:30]} Bd5+ {[%emt 0:00:02]} 33. Kg3 {[%emt 0:00:06]} Bxc4 {[%emt 0:00:05]} 34. Rxe5 {[%emt 0:00:01][%mdl 4096] Endgame. KRB-KR} Kf7 {[%emt 0:03:43]} 35. Rc5 $2 {[%emt 0:00:11]} (35. Kg4 {might work better.}) 35... Be6 {[%emt 0:02:31] Black is clearly winning.} 36. Rxg5 {[%emt 0:03:41]} Ra8 {[%emt 0:00:34]} 37. Rc5 {[%emt 0:01:10]} Rxa3+ {[%emt 0:00:15]} 38. Kf4 {[%emt 0:00:00]} Kf6 {[%emt 0:00:22]} 39. Ke4 {[%emt 0:00:43]} Ra4+ {[%emt 0:02:57]} 40. Ke3 {[%emt 0:00:00]} Rg4 {[%emt 0:00:00]} 41. Rc7 {[%emt 0:01:23]} Bd5 {[%emt 0:02:37]} 42. g3 {[%emt 0:00:05] Weighted Error Value: White=0.42/Black=0.13 (very precise) .  Loses game:     	White=1     	---        Missed win:     	---       	Black=1      Mistake:       	White=4     	Black=1      Inaccurate:     	White=4     	Black=1      OK:         	White=10    	Black=9      Best:        	---       	Black=7      Strong:       	White=1     	Black=1      Brilliant:      	---       	Black=1} 0-1

[Event "Polish Ekstraliga 2024"]
[Site "Walbrzych"]
[Date "2024.10.09"]
[Round "3.28"]
[White "Moranda, Wojciech"]
[Black "Kyc, Jerzy"]
[Result "1/2-1/2"]
[ECO "D30"]
[WhiteElo "2559"]
[BlackElo "2253"]
[Annotator "RC"]
[PlyCount "87"]
[EventDate "2024.10.05"]
[EventType "team-tourn"]
[EventCountry "POL"]
[SourceTitle "playchess.com"]
[Source "ChessBase"]
[SourceQuality "1"]
[WhiteTeam "Pegow"]
[BlackTeam "Sedziszow Malopolski"]
[TimeControl "40/5400+30:1800+30"]

1. d4 {[%emt 0:00:05]} d5 {[%emt 0:00:21]} 2. c4 {[%emt 0:00:19]} c6 {[%emt 0:00:50]} 3. Nf3 {[%emt 0:00:23]} Nf6 {[%emt 0:00:30]} 4. e3 {[%emt 0:00:23]} e6 {[%emt 0:02:03]} 5. Nbd2 {[%emt 0:00:38]} c5 {[%emt 0:03:23]} 6. cxd5 {[%emt 0:01:22]} Nxd5 {[%emt 0:00:50]} 7. e4 {[%emt 0:01:04]} Nb6 {[%emt 0:00:14]} 8. dxc5 {[%emt 0:01:34]} Bxc5 {[%emt 0:00:58]} 9. Be2 {[%emt 0:00:41]} Nc6 {[%emt 0:00:26]} 10. O-O {[%emt 0:00:54]} O-O {[%emt 0:00:25]} 11. Nb3 {[%emt 0:01:54]} Bd6 {[%emt 0:02:59]} 12. Be3 {[%emt 0:07:54]} e5 {[%emt 0:01:38]} 13. Rc1 {[%emt 0:33:25]} Qe7 {[%emt 0:00:22]} 14. Bb5 {[%emt 0:07:04]} Rd8 {[%emt 0:01:27]} 15. Bxc6 {[%emt 0:03:02]} bxc6 {[%emt 0:00:35]} 16. Na5 {[%emt 0:01:56]} Qe8 {[%emt 0:07:54]} 17. Nxc6 {[%emt 0:10:18]} Rd7 {[%emt 0:00:22]} 18. Qb3 {[%emt 0:04:44]} Rc7 {[%emt 0:05:15]} 19. Bxb6 {[%emt 0:09:32]} Rxc6 {[%emt 0:10:23]} 20. Be3 {[%emt 0:00:28]} Be6 {[%emt 0:02:30]} 21. Qd3 {[%emt 0:01:34]} Rac8 {[%emt 0:08:55]} 22. Rxc6 {[%emt 0:00:38]} Qxc6 {[%emt 0:00:48]} 23. b3 {[%emt 0:00:24]} f6 {[%emt 0:06:23]} 24. h3 {[%emt 0:02:05]} Rd8 {[%emt 0:17:01]} 25. Rc1 {[%emt 0:01:22]} Qb7 {[%emt 0:00:08]} 26. Nd2 {[%emt 0:00:57]} Be7 {[%emt 0:01:37]} 27. Qc2 {[%emt 0:01:17]} Rc8 {[%emt 0:03:21]} 28. Nc4 {[%emt 0:00:32]} Ba3 {[%emt 0:01:45]} 29. Rd1 {[%emt 0:00:47]} Qa6 {[%emt 0:00:44]} 30. f3 {[%emt 0:03:25]} h6 {[%emt 0:10:40]} 31. Rd3 {[%emt 0:02:26]} Bf8 {[%emt 0:03:11]} 32. Rc3 {[%emt 0:01:24]} Bb4 {[%emt 0:00:06]} 33. Rd3 {[%emt 0:00:05]} Bf8 {[%emt 0:00:02]} 34. Rd2 {[%emt 0:00:38]} Bb4 {[%emt 0:02:35]} 35. Rd1 {[%emt 0:00:22]} Bf8 {[%emt 0:00:25]} 36. Qb2 {[%emt 0:00:44]} Bxc4 {[%emt 0:01:59]} 37. bxc4 {[%emt 0:00:04]} Qa4 {[%emt 0:03:17]} 38. Qb3 {[%emt 0:01:02]} Rxc4 {[%emt 0:01:55]} 39. Rd8 {[%emt 0:00:40]} Qxb3 {[%emt 0:00:46]} 40. axb3 {[%emt 0:00:00]} Rc7 {[%emt 0:00:00]} 41. Ra8 {[%emt 0:10:06]} a6 {[%emt 0:01:32]} 42. Kf1 {[%emt 0:06:55]} Rc3 {[%emt 0:02:26]} 43. Ke2 {[%emt 0:01:07]} Kf7 {[%emt 0:00:19]} 44. Rxa6 {[%emt 0:01:20]} 1/2-1/2

[Event "Polish Ekstraliga 2024"]
[Site "Walbrzych"]
[Date "2024.10.09"]
[Round "3.29"]
[White "Gesicki, Jacek"]
[Black "Plat, Vojtech"]
[Result "1/2-1/2"]
[ECO "B02"]
[WhiteElo "2210"]
[BlackElo "2488"]
[Annotator "TA"]
[PlyCount "124"]
[EventDate "2024.10.05"]
[EventType "team-tourn"]
[EventCountry "POL"]
[SourceTitle "playchess.com"]
[Source "ChessBase"]
[SourceQuality "1"]
[WhiteTeam "Sedziszow Malopolski"]
[BlackTeam "Pegow"]
[TimeControl "40/5400+30:1800+30"]

{[%evp 10,124,43,15,13,0,0,-6,-5,-22,-13,-11,-2,-22,-15,-23,-21,-24,-6,-15,15,-11,-8,-10,-10,-33,-16,-33,-11,-20,-12,-13,0,0,0,0,0,0,0,0,0,0,0,0,0,0,0,0,0,-3,0,0,0,0,0,0,0,0,0,0,0,0,0,0,0,0,0,0,0,0,0,0,0,0,0,0,0,0,0,0,0,0,0,0,0,0,0,0,0,0,0,0,0,0,0,0,0,0,0,0,0,0,0,0,0,0,0,0,0,0,0,0,0,0,0,0,7]} 1. e4 {[%emt 0:00:04]} Nf6 {[%emt 0:00:45]} 2. Nc3 {[%emt 0:05:32]} d6 {[%emt 0:00:32]} 3. d4 {[%emt 0:01:01]} e5 {[%emt 0:00:05]} 4. dxe5 {[%emt 0:01:22]} dxe5 {[%emt 0:00:06]} 5. Qxd8+ {[%emt 0:00:05]} Kxd8 {[%emt 0:00:08]} 6. f3 {[%emt 0:01:28]} Be6 {[%emt 0:00:16]} 7. Be3 {[%emt 0:05:19]} c6 {[%emt 0:01:23]} 8. h4 {[%emt 0:02:53]} Nbd7 {[%emt 0:00:26]} 9. Nh3 {[%emt 0:02:17]} h6 {[%emt 0:02:57] Dodges Ng5} 10. Nf2 {[%emt 0:01:57]} Bc5 {[%emt 0:01:11]} 11. Bxc5 {[%emt 0:01:49]} Nxc5 {[%emt 0:00:03]} 12. Nd3 {[%emt 0:00:11]} Nxd3+ {[%emt 0:00:40]} 13. Bxd3 {[%emt 0:00:11]} Ke7 {[%emt 0:00:06]} 14. Kf2 {[%emt 0:09:27]} g5 {[%emt 0:00:48]} 15. hxg5 {[%emt 0:13:25]} hxg5 {[%emt 0:00:36]} 16. Rxh8 {[%emt 0:00:04]} Rxh8 {[%emt 0:00:08]} 17. Ne2 {[%emt 0:06:25]} Nd7 {[%emt 0:02:07]} 18. Ng3 {[%emt 0:16:47]} g4 {[%emt 0:01:18]} 19. a3 {[%emt 0:11:55] The position is equal.} Nc5 {[%emt 0:03:08]} 20. Rh1 {[%emt 0:00:57]} Rg8 {[%emt 0:01:21]} 21. Be2 {[%emt 0:01:53]} gxf3 {[%emt 0:00:23]} 22. gxf3 {[%emt 0:00:09]} Na4 {[%emt 0:01:05]} 23. b3 {[%emt 0:01:03]} Nc3 {[%emt 0:00:13][%cal Og8g3] [#] Hoping for ...Rxg3!} 24. Bd3 {[%emt 0:03:27]} a5 {[%emt 0:00:30]} 25. Ne2 {[%emt 0:02:55]} Nxe2 {[%emt 0:00:48]} 26. Bxe2 $11 {[%emt 0:00:06][%mdl 4096] Endgame. KRB-KRB} Kd6 {[%emt 0:00:05]} 27. b4 {[%emt 0:00:56]} Ra8 {[%emt 0:01:10]} 28. Rd1+ {[%emt 0:01:08]} Kc7 {[%emt 0:00:19]} 29. c3 {[%emt 0:00:09]} axb4 {[%emt 0:01:50]} 30. axb4 {[%emt 0:00:05]} Ra3 {[%emt 0:01:12]} 31. Rc1 {[%emt 0:00:07]} Kb6 {[%emt 0:00:58]} 32. Ke3 {[%emt 0:00:09]} c5 {[%emt 0:00:04]} 33. bxc5+ {[%emt 0:00:16]} Kxc5 {[%emt 0:00:04]} 34. Kd2 {[%emt 0:08:24]} b5 {[%emt 0:01:04]} 35. Rb1 {[%emt 0:00:48]} Bb3 {[%emt 0:00:15]} 36. Rb2 {[%emt 0:00:29]} f6 {[%emt 0:00:29]} 37. Bd3 {[%emt 0:00:42]} Kc6 {[%emt 0:02:58]} 38. Bc2 {[%emt 0:01:09]} Bf7 {[%emt 0:00:11]} 39. Bd3 {[%emt 0:00:14]} Ra5 {[%emt 0:00:03]} 40. Be2 {[%emt 0:00:00]} Kc5 {[%emt 0:00:00]} 41. Bd3 {[%emt 0:03:47]} Be8 {[%emt 0:00:34]} 42. Ke3 {[%emt 0:01:12]} Ra8 {[%emt 0:00:52]} 43. Kd2 {[%emt 0:00:34]} Ra5 {[%emt 0:01:17]} 44. Ke3 {[%emt 0:01:52]} Bf7 {[%emt 0:00:04]} 45. Kd2 {[%emt 0:01:11]} Bc4 {[%emt 0:01:02]} 46. Bxc4 {[%emt 0:01:21]} Kxc4 {[%emt 0:00:07] KR-KR} 47. Rb4+ {[%emt 0:00:08]} Kc5 {[%emt 0:00:01]} 48. Kd3 {[%emt 0:01:07]} Ra3 {[%emt 0:01:09]} 49. Rb1 {[%emt 0:00:52]} Ra2 {[%emt 0:00:25]} 50. Rb4 {[%emt 0:00:18]} Ra1 {[%emt 0:01:10]} 51. Rb2 {[%emt 0:00:28]} Rd1+ {[%emt 0:00:08]} 52. Ke2 {[%emt 0:00:58]} Rh1 {[%emt 0:00:54] [#] ( -> ...Rh2+)} 53. Kd3 {[%emt 0:00:39]} Rh8 {[%emt 0:00:49]} 54. Rb4 {[%emt 0:01:10]} Ra8 {[%emt 0:00:07]} 55. Rb2 {[%emt 0:01:46]} Ra4 {[%emt 0:00:14]} 56. Rb1 {[%emt 0:00:45]} f5 {[%emt 0:06:05]} 57. exf5 {[%emt 0:01:11][%cal Ob1b4] aiming for Rb4!} Rf4 {[%emt 0:00:01][%csl LRf3,LRf5]} 58. Ke3 {[%emt 0:01:58]} Rxf5 {[%emt 0:00:17]} 59. Rb4 {[%emt 0:01:06]} Rf8 {[%emt 0:00:17]} 60. Re4 {[%emt 0:01:43]} Rd8 {[%emt 0:00:25]} 61. Rxe5+ {[%emt 0:03:14]} Kc4 {[%emt 0:00:01]} 62. Ke2 {[%emt 0:00:11]} Rf8 {[%emt 0:01:36] Not much happened in this game.   Weighted Error Value: White=0.04 (flawless) /Black=0.02 (flawless) .  Inaccurate:     	White=1     	Black=1      OK:         	White=20    	Black=14     Best:        	---       	Black=1} 1/2-1/2

[Event "Polish Ekstraliga 2024"]
[Site "Walbrzych"]
[Date "2024.10.10"]
[Round "4.1"]
[White "Erdogmus, Yagiz Kaan"]
[Black "Janik, Igor"]
[Result "1/2-1/2"]
[ECO "E12"]
[WhiteElo "2601"]
[BlackElo "2501"]
[Annotator "RC"]
[PlyCount "86"]
[EventDate "2024.10.05"]
[EventType "team-tourn"]
[EventCountry "POL"]
[SourceTitle "playchess.com"]
[Source "ChessBase"]
[SourceQuality "1"]
[WhiteTeam "Legnica"]
[BlackTeam "Gorzow Wlkp"]
[TimeControl "40/5400+30:1800+30"]

1. d4 {[%emt 0:01:09]} Nf6 {[%emt 0:00:14]} 2. c4 {[%emt 0:00:16]} e6 {[%emt 0:00:04]} 3. Nf3 {[%emt 0:00:04]} b6 {[%emt 0:00:40]} 4. a3 {[%emt 0:00:05]} Ba6 {[%emt 0:04:15]} 5. Qc2 {[%emt 0:00:42]} Bb7 {[%emt 0:00:06]} 6. Nc3 {[%emt 0:01:31]} c5 {[%emt 0:00:13]} 7. Bf4 {[%emt 0:06:45]} Bxf3 {[%emt 0:10:41]} 8. exf3 {[%emt 0:14:12]} Nc6 {[%emt 0:06:10]} 9. d5 {[%emt 0:01:10]} Nd4 {[%emt 0:00:12]} 10. Qd1 {[%emt 0:00:09]} e5 {[%emt 0:08:01]} 11. Be3 {[%emt 0:10:57]} Bd6 {[%emt 0:03:02]} 12. Bd3 {[%emt 0:00:17]} O-O {[%emt 0:00:05]} 13. O-O {[%emt 0:00:19]} Ne8 {[%emt 0:00:41]} 14. Re1 {[%emt 0:18:43]} f5 {[%emt 0:01:54]} 15. g3 {[%emt 0:07:10]} g6 {[%emt 0:02:45]} 16. Nb5 {[%emt 0:02:03]} Nxb5 {[%emt 0:20:18]} 17. cxb5 {[%emt 0:00:10]} f4 {[%emt 0:00:23]} 18. Bd2 {[%emt 0:00:04]} fxg3 {[%emt 0:00:34]} 19. hxg3 {[%emt 0:01:05]} Ng7 {[%emt 0:00:16]} 20. Bh6 {[%emt 0:06:40]} Rf7 {[%emt 0:03:13]} 21. Kg2 {[%emt 0:01:33]} Qf6 {[%emt 0:01:13]} 22. Be4 {[%emt 0:07:21]} Nf5 {[%emt 0:00:42]} 23. Rh1 {[%emt 0:00:44]} Nd4 {[%emt 0:04:23]} 24. Rh3 {[%emt 0:03:50]} Rc8 {[%emt 0:02:32]} 25. g4 {[%emt 0:03:12]} Bf8 {[%emt 0:02:20]} 26. Be3 {[%emt 0:00:10]} Nxb5 {[%emt 0:00:46]} 27. d6 {[%emt 0:04:26]} Nd4 {[%emt 0:03:01]} 28. Bxd4 {[%emt 0:00:22]} cxd4 {[%emt 0:00:41]} 29. Bd5 {[%emt 0:00:04]} Rc5 {[%emt 0:00:06]} 30. Ba2 {[%emt 0:01:19]} Rc6 {[%emt 0:04:48]} 31. Qe2 {[%emt 0:04:53]} Rxd6 {[%emt 0:04:56]} 32. Bxf7+ {[%emt 0:00:03]} Kxf7 {[%emt 0:00:27]} 33. Rxh7+ {[%emt 0:00:14]} Kg8 {[%emt 0:00:27]} 34. Rah1 {[%emt 0:00:25]} d3 {[%emt 0:00:11]} 35. Qe4 {[%emt 0:03:47]} Rd4 {[%emt 0:00:11]} 36. Qa8 {[%emt 0:01:18]} d2 {[%emt 0:00:43]} 37. Rh8+ {[%emt 0:00:30]} Qxh8 {[%emt 0:00:05]} 38. Rxh8+ {[%emt 0:00:04]} Kxh8 {[%emt 0:00:04]} 39. Qxf8+ {[%emt 0:00:04]} Kh7 {[%emt 0:00:01]} 40. Qe7+ {[%emt 0:00:00]} Kg8 {[%emt 0:00:00]} 41. Qe8+ {[%emt 0:00:16]} Kh7 {[%emt 0:00:56]} 42. Qf7+ {[%emt 0:00:13]} Kh8 {[%emt 0:00:27]} 43. Qf6+ {[%emt 0:04:44]} Kh7 {[%emt 0:00:09]} 1/2-1/2